fUSD/lending_fUSD_20240210
["ID","MTS","AMOUNT","RATE_DAILY","PERIOD"]
[313652961,1707541856459,-500.0,0.00025479,2]
[313652962,1707541856469,-500.0,0.00025479,2]
[313652963,1707541856478,-196.57336917,0.00025479,2]
[313652964,1707541856488,-500.0,0.00025479,2]
[313652965,1707541856497,-500.0,0.00025479,2]
[313652966,1707541856506,-500.0,0.00025479,2]
[313652967,1707541856515,-500.0,0.00025479,2]
[313652968,1707541856524,-996.88,0.00025479,2]
[313652969,1707541856534,-500.0,0.00025479,2]
[313652970,1707541856543,-500.0,0.00025479,2]
[313652971,1707541856552,-500.0,0.00025479,2]
[313652972,1707541856562,-500.0,0.00025479,2]
[313652973,1707541856571,-500.0,0.00025479,2]
[313652974,1707541856580,-500.0,0.00025479,2]
[313652975,1707541856589,-1603.32,0.00025479,2]
[313652976,1707541856598,-500.0,0.00025479,2]
[313652977,1707541856608,-10488.09,0.00025479,2]
[313652978,1707541856617,-500.0,0.00025479,2]
[313652979,1707541856626,-500.0,0.00025479,2]
[313652980,1707541856636,-500.0,0.00025479,2]
[313652981,1707541856645,-4700.07,0.00025479,2]
[313652982,1707541856655,-500.0,0.00025479,2]
[313652983,1707541856669,-500.0,0.00025479,2]
[313652984,1707541856678,-500.0,0.00025479,2]
[313652985,1707541856688,-528.72,0.00025479,2]
[313652986,1707541856697,-1287.62,0.00025479,2]
[313652987,1707541856707,-500.0,0.00025479,2]
[313652988,1707541856717,-500.0,0.00025479,2]
[313652989,1707541856727,-500.0,0.00025479,2]
[313652990,1707541856737,-500.0,0.00025479,2]
[313652991,1707541856746,-525.99,0.00025479,2]
[313652992,1707541856756,-4321.02,0.00025479,2]
[313652993,1707541856766,-500.0,0.00025479,2]
[313652994,1707541856775,-500.0,0.00025479,2]
[313652995,1707541856784,-500.0,0.00025479,2]
[313652996,1707541856793,-8622.86,0.00025479,2]
[313652997,1707541856802,-6655.83000894,0.00025479,2]
[313652998,1707541857239,-23674.84999106,0.00025479,2]
[313652999,1707541857249,-1235.43,0.00025479,2]
[313653000,1707541857258,-500.0,0.00025479,2]
[313653001,1707541857267,-500.0,0.00025479,2]
[313653002,1707541857277,-4111.15,0.00025479,2]
[313653003,1707541857286,-500.0,0.00025479,2]
[313653004,1707541857295,-500.0,0.00025479,2]
[313653005,1707541857304,-654.25,0.00025479,2]
[313653006,1707541857314,-500.0,0.00025479,2]
[313653007,1707541857324,-201.97480637,0.00025479,2]
[313653008,1707541857334,-500.0,0.00025479,2]
[313653009,1707541857343,-7598.26,0.00025479,2]
[313653010,1707541857355,-500.0,0.00025479,2]
[313653011,1707541857364,-500.0,0.00025479,2]
[313653012,1707541857374,-2154.39,0.00025479,2]
[313653013,1707541857383,-1378.02,0.00025479,2]
[313653014,1707541857392,-500.0,0.00025479,2]
[313653015,1707541857402,-500.0,0.00025479,2]
[313653016,1707541857412,-530.92464167,0.00025479,2]
[313653017,1707541857422,-4004.66,0.00025479,2]
[313653018,1707541857432,-1141.14,0.00025479,2]
[313653019,1707541857441,-500.0,0.00025479,2]
[313653020,1707541857452,-500.0,0.00025479,2]
[313653021,1707541857461,-500.0,0.00025479,2]
[313653022,1707541857471,-500.0,0.00025479,2]
[313653023,1707541857480,-563.45,0.00025479,2]
[313653024,1707541857490,-500.0,0.00025479,2]
[313653025,1707541857499,-394.51824798,0.00025479,2]
[313653026,1707541857508,-5320.84,0.00025479,2]
[313653027,1707541857518,-500.0,0.00025479,2]
[313653028,1707541857527,-500.0,0.00025479,2]
[313653029,1707541857536,-500.0,0.00025479,2]
[313653030,1707541857546,-500.0,0.00025479,2]
[313653031,1707541857555,-16992.36,0.00025479,2]
[313653032,1707541857564,-500.0,0.00025479,2]
[313653033,1707541857574,-672.96,0.00025479,2]
[313653034,1707541857583,-2003.76,0.00025479,2]
[313653035,1707541857593,-500.0,0.00025479,2]
[313653036,1707541857602,-3726.24,0.00025479,2]
[313653037,1707541857612,-500.0,0.00025479,2]
[313653038,1707541857621,-500.0,0.00025479,2]
[313653039,1707541857630,-500.0,0.00025479,2]
[313653040,1707541857639,-3043.1,0.00025479,2]
[313653041,1707541857649,-500.0,0.00025479,2]
[313653042,1707541857661,-500.0,0.00025479,2]
[313653043,1707541857673,-500.0,0.00025479,2]
[313653044,1707541857682,-500.0,0.00025479,2]
[313653045,1707541857692,-1589.97,0.00025479,2]
[313653046,1707541857703,-1214.58,0.00025479,2]
[313653047,1707541857712,-500.0,0.00025479,2]
[313653048,1707541857721,-8143.14,0.00025479,2]
[313653049,1707541857730,-925.17,0.00025479,2]
[313653050,1707541857741,-10582.46,0.00025479,2]
[313653051,1707541857751,-500.0,0.00025479,2]
[313653052,1707541857760,-752.09,0.00025479,2]
[313653053,1707541857769,-4054.82,0.00025479,2]
[313653054,1707541857778,-500.0,0.00025479,2]
[313653055,1707541857787,-500.0,0.00025479,2]
[313653056,1707541857796,-500.0,0.00025479,2]
[313653057,1707541857805,-500.0,0.00025479,2]
[313653058,1707541857815,-997.19,0.00025479,2]
[313653059,1707541857824,-500.0,0.00025479,2]
[313653060,1707541857833,-1086.84,0.00025479,2]
[313653061,1707541857843,-500.0,0.00025479,2]
[313653062,1707541857853,-989.49,0.00025479,2]
[313653063,1707541857862,-2893.62,0.00025479,2]
[313653064,1707541857871,-8417.08,0.00025479,2]
[313653065,1707541857881,-500.0,0.00025479,2]
[313653066,1707541857890,-762.91,0.00025479,2]
[313653067,1707541857899,-6092.25,0.00025479,2]
[313653068,1707541857908,-500.0,0.00025479,2]
[313653069,1707541857917,-500.0,0.00025479,2]
[313653070,1707541857927,-500.0,0.00025479,2]
[313653071,1707541857936,-5772.68,0.00025479,2]
[313653072,1707541857945,-500.0,0.00025479,2]
[313653073,1707541857954,-533.82,0.00025479,2]
[313653074,1707541857964,-3262.21,0.00025479,2]
[313653075,1707541857973,-500.0,0.00025479,2]
[313653076,1707541857982,-2553.08,0.00025479,2]
[313653077,1707541857991,-551.27429173,0.00025479,2]
[313653078,1707541858001,-500.0,0.00025479,2]
[313653079,1707541858010,-500.0,0.00025479,2]
[313653080,1707541858019,-3141.04,0.00025479,2]
[313653081,1707541858028,-1237.02,0.00025479,2]
[313653082,1707541858038,-478.66855788,0.00025479,2]
[313653083,1707541858047,-1014.79,0.00025479,2]
[313653084,1707541858055,-500.0,0.00025479,2]
[313653085,1707541858064,-701.54,0.00025479,2]
[313653086,1707541858073,-797.39,0.00025479,2]
[313653087,1707541858083,-500.0,0.00025479,2]
[313653088,1707541858094,-1877.41,0.00025479,2]
[313653089,1707541858104,-500.0,0.00025479,2]
[313653090,1707541858113,-824.19,0.00025479,2]
[313653091,1707541858123,-500.0,0.00025479,2]
[313653092,1707541858132,-780.84,0.00025479,2]
[313653093,1707541858142,-11120.76,0.00025479,2]
[313653094,1707541858151,-2774.65,0.00025479,2]
[313653095,1707541858161,-500.0,0.00025479,2]
[313653096,1707541858171,-500.0,0.00025479,2]
[313653097,1707541858181,-841.34,0.00025479,2]
[313653098,1707541858190,-500.0,0.00025479,2]
[313653099,1707541858200,-548.98,0.00025479,2]
[313653100,1707541858209,-3133.73,0.00025479,2]
[313653101,1707541858219,-500.0,0.00025479,2]
[313653102,1707541858228,-5696.15,0.00025479,2]
[313653103,1707541858238,-1369.16,0.00025479,2]
[313653104,1707541858248,-1083.9,0.00025479,2]
[313653105,1707541858259,-500.0,0.00025479,2]
[313653106,1707541858269,-3213.78,0.00025479,2]
[313653107,1707541858277,-858.57,0.00025479,2]
[313653108,1707541858286,-1992.71,0.00025479,2]
[313653109,1707541858296,-756.03,0.00025479,2]
[313653110,1707541858306,-1694.87,0.00025479,2]
[313653111,1707541858316,-21142.71,0.00025479,2]
[313653112,1707541858326,-500.0,0.00025479,2]
[313653113,1707541858337,-3065.8,0.00025479,2]
[313653114,1707541858346,-750.69,0.00025479,2]
[313653115,1707541858355,-500.0,0.00025479,2]
[313653116,1707541858364,-500.0,0.00025479,2]
[313653117,1707541858374,-500.0,0.00025479,2]
[313653118,1707541858383,-500.0,0.00025479,2]
[313653119,1707541858570,-500.0,0.00025479,2]
[313653120,1707541858585,-1076.84,0.00025479,2]
[313653121,1707541858595,-540.13605335,0.00025479,2]
[313653122,1707541858605,-3466.34,0.00025479,2]
[313653123,1707541858614,-1002.98,0.00025479,2]
[313653124,1707541858623,-500.0,0.00025479,2]
[313653125,1707541858633,-500.0,0.00025479,2]
[313653126,1707541858642,-569.26,0.00025479,2]
[313653127,1707541858652,-500.0,0.00025479,2]
[313653128,1707541858666,-500.0,0.00025479,2]
[313653129,1707541858676,-1066.53,0.00025479,2]
[313653130,1707541858685,-723.87,0.00025479,2]
[313653131,1707541858694,-500.0,0.00025479,2]
[313653132,1707541858705,-6160.91,0.00025479,2]
[313653133,1707541858714,-532.38,0.00025479,2]
[313653134,1707541858726,-500.0,0.00025479,2]
[313653135,1707541858737,-3525.48,0.00025479,2]
[313653136,1707541858746,-500.0,0.00025479,2]
[313653137,1707541858755,-556.85,0.00025479,2]
[313653138,1707541858765,-500.0,0.00025479,2]
[313653139,1707541858773,-4907.77,0.00025479,2]
[313653140,1707541858783,-500.0,0.00025479,2]
[313653141,1707541858793,-4920.21,0.00025479,2]
[313653142,1707541858802,-604.05,0.00025479,2]
[313653143,1707541858811,-239.33,0.0002554,2]
[313653144,1707541858820,-152.56464471,0.00025545,2]
[313653145,1707541858829,-6496.53293432,0.0002558,2]
[313653146,1707541858839,-800.0,0.00025648,2]
[313653147,1707541858848,-9891.40081308,0.00025653,2]
[313653148,1707541858857,-200.0,0.00025712,2]
[313653149,1707541858866,-330.21,0.00025712,2]
[313653150,1707541858875,-500.0,0.00025753,2]
[313653151,1707541858885,-500.0,0.00025753,2]
[313653152,1707541858894,-500.0,0.00025753,2]
[313653153,1707541858903,-500.0,0.00025753,2]
[313653154,1707541858912,-255.02693677,0.00025753,2]
[313653155,1707541858921,-701.35,0.00025753,2]
[313653156,1707541858931,-500.0,0.00025753,2]
[313653157,1707541858940,-500.0,0.00025753,2]
[313653158,1707541858950,-500.0,0.00025753,2]
[313653159,1707541858960,-500.0,0.00025753,2]
[313653160,1707541858970,-500.0,0.00025753,2]
[313653161,1707541858980,-500.0,0.00025753,2]
[313653162,1707541858990,-500.0,0.00025753,2]
[313653163,1707541858999,-500.0,0.00025753,2]
[313653164,1707541859008,-500.0,0.00025753,2]
[313653165,1707541859017,-500.0,0.00025753,2]
[313653166,1707541859027,-500.0,0.00025753,2]
[313653167,1707541859036,-500.0,0.00025753,2]
[313653168,1707541859046,-500.0,0.00025753,2]
[313653169,1707541859056,-500.0,0.00025753,2]
[313653170,1707541859065,-500.0,0.00025753,2]
[313653171,1707541859074,-500.0,0.00025753,2]
[313653172,1707541859083,-500.0,0.00025753,2]
[313653173,1707541859092,-500.0,0.00025753,2]
[313653174,1707541859101,-752.41,0.00025753,7]
[313653175,1707541859110,-500.0,0.00025753,2]
[313653176,1707541859120,-500.0,0.00025753,2]
[313653177,1707541859129,-500.0,0.00025753,2]
[313653178,1707541859138,-532.89,0.00025753,2]
[313653179,1707541859147,-500.0,0.00025753,2]
[313653180,1707541859157,-500.0,0.00025753,2]
[313653181,1707541859166,-500.0,0.00025753,2]
[313653182,1707541859176,-500.0,0.00025753,2]
[313653183,1707541859185,-500.0,0.00025753,2]
[313653184,1707541859194,-500.0,0.00025753,2]
[313653185,1707541859204,-703.46,0.00025753,2]
[313653186,1707541859213,-500.0,0.00025753,2]
[313653187,1707541859222,-500.0,0.00025753,2]
[313653188,1707541859231,-500.0,0.00025753,2]
[313653189,1707541859240,-500.0,0.00025753,2]
[313653190,1707541859249,-500.0,0.00025753,2]
[313653191,1707541859258,-500.0,0.00025753,2]
[313653192,1707541859267,-644.27,0.00025753,2]
[313653193,1707541859278,-500.0,0.00025753,2]
[313653194,1707541859287,-500.0,0.00025753,2]
[313653195,1707541859297,-500.0,0.00025753,2]
[313653196,1707541859306,-500.0,0.00025753,2]
[313653197,1707541859316,-500.0,0.00025753,2]
[313653198,1707541859326,-500.0,0.00025753,2]
[313653199,1707541859335,-500.0,0.00025753,2]
[313653200,1707541859344,-500.0,0.00025753,2]
[313653201,1707541859353,-500.0,0.00025753,2]
[313653202,1707541859362,-500.0,0.00025753,2]
[313653203,1707541859372,-500.0,0.00025753,2]
[313653204,1707541859382,-500.0,0.00025753,2]
[313653205,1707541859391,-545.13,0.00025753,2]
[313653206,1707541859400,-500.0,0.00025753,2]
[313653207,1707541859411,-500.0,0.00025753,2]
[313653208,1707541859420,-500.0,0.00025753,2]
[313653209,1707541859430,-500.0,0.00025753,2]
[313653210,1707541859439,-500.0,0.00025753,2]
[313653211,1707541859448,-500.0,0.00025753,2]
[313653212,1707541859457,-500.0,0.00025753,2]
[313653213,1707541859467,-500.0,0.00025753,2]
[313653214,1707541859477,-500.0,0.00025753,2]
[313653215,1707541859486,-500.0,0.00025753,2]
[313653216,1707541859495,-514.14,0.00025753,2]
[313653217,1707541859505,-500.0,0.00025753,2]
[313653218,1707541859514,-500.0,0.00025753,2]
[313653219,1707541859523,-500.0,0.00025753,2]
[313653220,1707541859533,-500.0,0.00025753,2]
[313653221,1707541859542,-1267.16,0.00025753,2]
[313653222,1707541859551,-500.0,0.00025753,2]
[313653223,1707541859561,-500.0,0.00025753,2]
[313653224,1707541859570,-500.0,0.00025753,2]
[313653225,1707541859579,-500.0,0.00025753,2]
[313653226,1707541859589,-1984.15,0.00025753,2]
[313653227,1707541859598,-807.45,0.00025753,2]
[313653228,1707541859607,-500.0,0.00025753,2]
[313653229,1707541859617,-500.0,0.00025753,2]
[313653230,1707541859627,-500.0,0.00025753,2]
[313653231,1707541859637,-500.0,0.00025753,2]
[313653232,1707541859646,-500.0,0.00025753,2]
[313653233,1707541859656,-220.50574799,0.00025753,2]
[313653234,1707541859669,-987.68,0.00025753,2]
[313653235,1707541859679,-500.0,0.00025753,2]
[313653236,1707541859688,-500.0,0.00025753,2]
[313653237,1707541859698,-500.0,0.00025753,2]
[313653238,1707541859708,-192.68,0.00025753,2]
[313653239,1707541859717,-628.9689614,0.00025753,2]
[313653240,1707541859727,-500.0,0.00025753,2]
[313653241,1707541859737,-500.0,0.00025753,2]
[313653242,1707541859747,-500.0,0.00025753,2]
[313653243,1707541859756,-529.73,0.00025753,2]
[313653244,1707541859765,-500.0,0.00025753,2]
[313653245,1707541859774,-500.0,0.00025753,2]
[313653246,1707541859784,-500.0,0.00025753,2]
[313653247,1707541859793,-500.0,0.00025753,2]
[313653248,1707541859802,-568.87,0.00025753,2]
[313653249,1707541859811,-500.0,0.00025753,2]
[313653250,1707541859820,-500.0,0.00025753,2]
[313653251,1707541859829,-500.0,0.00025753,2]
[313653252,1707541859838,-500.0,0.00025753,2]
[313653253,1707541859847,-500.0,0.00025753,2]
[313653254,1707541859857,-648.85,0.00025753,2]
[313653255,1707541859866,-500.0,0.00025753,2]
[313653256,1707541859875,-500.0,0.00025753,2]
[313653257,1707541859885,-500.0,0.00025753,2]
[313653258,1707541859894,-500.0,0.00025753,2]
[313653259,1707541859904,-602.23,0.00025753,2]
[313653260,1707541859913,-500.0,0.00025753,2]
[313653261,1707541859923,-500.0,0.00025753,2]
[313653262,1707541859933,-500.0,0.00025753,2]
[313653263,1707541859943,-500.0,0.00025753,2]
[313653264,1707541859952,-524.13308894,0.00025753,2]
[313653265,1707541859962,-500.0,0.00025753,2]
[313653266,1707541859971,-500.0,0.00025753,2]
[313653267,1707541859981,-500.0,0.00025753,2]
[313653268,1707541859990,-500.0,0.00025753,2]
[313653269,1707541859999,-500.0,0.00025753,2]
[313653270,1707541860009,-650.09,0.00025753,2]
[313653271,1707541860019,-500.0,0.00025753,2]
[313653272,1707541860028,-500.0,0.00025753,2]
[313653273,1707541860038,-500.0,0.00025753,2]
[313653274,1707541860047,-545.39,0.00025753,2]
[313653275,1707541860057,-500.0,0.00025753,2]
[313653276,1707541860068,-500.0,0.00025753,2]
[313653277,1707541860077,-500.0,0.00025753,2]
[313653278,1707541860087,-500.0,0.00025753,2]
[313653279,1707541860096,-500.0,0.00025753,2]
[313653280,1707541860106,-500.0,0.00025753,2]
[313653281,1707541860115,-500.0,0.00025753,2]
[313653282,1707541860124,-728.16,0.00025753,2]
[313653283,1707541860133,-500.0,0.00025753,2]
[313653284,1707541860143,-500.0,0.00025753,2]
[313653285,1707541860152,-628.13060742,0.00025753,2]
[313653286,1707541860162,-500.0,0.00025753,2]
[313653287,1707541860171,-520.57,0.00025753,2]
[313653288,1707541860181,-500.0,0.00025753,2]
[313653289,1707541860190,-4417.49,0.00025753,2]
[313653290,1707541860199,-796.62,0.00025753,2]
[313653291,1707541860209,-500.0,0.00025753,2]
[313653292,1707541860219,-500.0,0.00025753,2]
[313653293,1707541860228,-523.86765321,0.00025753,2]
[313653294,1707541860238,-542.61785467,0.00025753,2]
[313653295,1707541860248,-500.0,0.00025753,2]
[313653296,1707541860257,-500.0,0.00025753,2]
[313653297,1707541860267,-996.88,0.00025753,2]
[313653298,1707541860276,-500.0,0.00025753,2]
[313653299,1707541860287,-500.0,0.00025753,2]
[313653300,1707541860297,-535.43850549,0.00025753,2]
[313653301,1707541860307,-500.0,0.00025753,2]
[313653302,1707541860317,-500.0,0.00025753,2]
[313653303,1707541860326,-500.0,0.00025753,2]
[313653304,1707541860335,-1603.32,0.00025753,2]
[313653305,1707541860346,-500.0,0.00025753,2]
[313653306,1707541860356,-10488.09,0.00025753,2]
[313653307,1707541860366,-500.0,0.00025753,2]
[313653308,1707541860375,-500.0,0.00025753,2]
[313653309,1707541860384,-500.0,0.00025753,2]
[313653310,1707541860393,-4700.07,0.00025753,2]
[313653311,1707541860402,-500.0,0.00025753,2]
[313653312,1707541860412,-500.0,0.00025753,2]
[313653313,1707541860421,-500.0,0.00025753,2]
[313653314,1707541860431,-528.72,0.00025753,2]
[313653315,1707541860440,-1287.62,0.00025753,2]
[313653316,1707541860449,-500.0,0.00025753,2]
[313653317,1707541860459,-500.0,0.00025753,2]
[313653318,1707541860469,-500.0,0.00025753,2]
[313653319,1707541860478,-500.0,0.00025753,2]
[313653320,1707541860488,-525.99,0.00025753,2]
[313653321,1707541860498,-4321.02,0.00025753,2]
[313653322,1707541860508,-500.0,0.00025753,2]
[313653323,1707541860519,-500.0,0.00025753,2]
[313653324,1707541860528,-500.0,0.00025753,2]
[313653325,1707541860540,-8622.86,0.00025753,2]
[313653326,1707541860549,-1235.43,0.00025753,2]
[313653327,1707541860559,-30330.68,0.00025753,2]
[313653328,1707541860569,-500.0,0.00025753,2]
[313653329,1707541860578,-500.0,0.00025753,2]
[313653330,1707541860589,-4111.15,0.00025753,2]
[313653331,1707541860599,-500.0,0.00025753,2]
[313653332,1707541860608,-500.0,0.00025753,2]
[313653333,1707541860618,-654.25,0.00025753,2]
[313653334,1707541860627,-500.0,0.00025753,2]
[313653335,1707541860637,-500.0,0.00025753,2]
[313653336,1707541860647,-7598.26,0.00025753,2]
[313653337,1707541860658,-500.0,0.00025753,2]
[313653338,1707541860670,-500.0,0.00025753,2]
[313653339,1707541860679,-2154.39,0.00025753,2]
[313653340,1707541860689,-1378.02,0.00025753,2]
[313653341,1707541860699,-606.18954016,0.00025753,2]
[313653342,1707541860709,-500.0,0.00025753,2]
[313653343,1707541860718,-4004.66,0.00025753,2]
[313653344,1707541860727,-1141.14,0.00025753,2]
[313653345,1707541860737,-500.0,0.00025753,2]
[313653346,1707541860749,-500.0,0.00025753,2]
[313653347,1707541860759,-500.0,0.00025753,2]
[313653348,1707541860769,-373.93971798,0.00025753,2]
[313653349,1707541860779,-563.45,0.00025753,2]
[313653350,1707541860788,-500.0,0.00025753,2]
[313653351,1707541860797,-5320.84,0.00025753,2]
[313653352,1707541860807,-500.0,0.00025753,2]
[313653353,1707541860816,-500.0,0.00025753,2]
[313653354,1707541860825,-500.0,0.00025753,2]
[313653355,1707541860835,-500.0,0.00025753,2]
[313653356,1707541860845,-16992.36,0.00025753,2]
[313653357,1707541860854,-566.11779257,0.00025753,2]
[313653358,1707541860864,-672.96,0.00025753,2]
[313653359,1707541860873,-2003.76,0.00025753,2]
[313653360,1707541860882,-500.0,0.00025753,2]
[313653361,1707541860891,-3726.24,0.00025753,2]
[313653362,1707541860900,-500.0,0.00025753,2]
[313653363,1707541860910,-500.0,0.00025753,2]
[313653364,1707541860919,-500.0,0.00025753,2]
[313653365,1707541860929,-3043.1,0.00025753,2]
[313653366,1707541860939,-500.0,0.00025753,2]
[313653367,1707541860949,-500.0,0.00025753,2]
[313653368,1707541860960,-500.0,0.00025753,2]
[313653369,1707541860970,-500.0,0.00025753,2]
[313653370,1707541860979,-1589.97,0.00025753,2]
[313653371,1707541860988,-1214.58,0.00025753,2]
[313653372,1707541860997,-620.15105657,0.00025753,2]
[313653373,1707541861006,-8143.14,0.00025753,2]
[313653374,1707541861016,-925.17,0.00025753,2]
[313653375,1707541861025,-10582.46,0.00025753,2]
[313653376,1707541861034,-554.75649162,0.00025753,2]
[313653377,1707541861043,-752.09,0.00025753,2]
[313653378,1707541861053,-4054.82,0.00025753,2]
[313653379,1707541861062,-500.0,0.00025753,2]
[313653380,1707541861072,-500.0,0.00025753,2]
[313653381,1707541861081,-500.0,0.00025753,2]
[313653382,1707541861091,-500.0,0.00025753,2]
[313653383,1707541861100,-997.19,0.00025753,2]
[313653384,1707541861254,-500.0,0.00025753,2]
[313653385,1707541861264,-1086.84,0.00025753,2]
[313653386,1707541861273,-500.0,0.00025753,2]
[313653387,1707541861283,-989.49,0.00025753,2]
[313653388,1707541861292,-2893.62,0.00025753,2]
[313653389,1707541861301,-8417.08,0.00025753,2]
[313653390,1707541861310,-532.40534883,0.00025753,2]
[313653391,1707541861319,-762.91,0.00025753,2]
[313653392,1707541861329,-6092.25,0.00025753,2]
[313653393,1707541861339,-500.0,0.00025753,2]
[313653394,1707541861349,-500.0,0.00025753,2]
[313653395,1707541861358,-5772.68,0.00025753,2]
[313653396,1707541861368,-606.71994382,0.00025753,2]
[313653397,1707541861378,-533.82,0.00025753,2]
[313653398,1707541861388,-3262.21,0.00025753,2]
[313653399,1707541861398,-500.0,0.00025753,2]
[313653400,1707541861408,-2553.08,0.00025753,2]
[313653401,1707541861418,-332.16386453,0.00025753,2]
[313653402,1707541861428,-500.0,0.00025753,2]
[313653403,1707541861438,-3141.04,0.00025753,2]
[313653404,1707541861448,-1237.02,0.00025753,2]
[313653405,1707541861457,-1014.79,0.00025753,2]
[313653406,1707541861467,-500.0,0.00025753,2]
[313653407,1707541861477,-701.54,0.00025753,2]
[313653408,1707541861486,-797.39,0.00025753,2]
[313653409,1707541861496,-500.0,0.00025753,2]
[313653410,1707541861506,-1877.41,0.00025753,2]
[313653411,1707541861516,-500.0,0.00025753,2]
[313653412,1707541861525,-824.19,0.00025753,2]
[313653413,1707541861536,-500.0,0.00025753,2]
[313653414,1707541861546,-780.84,0.00025753,2]
[313653415,1707541861555,-11120.76,0.00025753,2]
[313653416,1707541861566,-2774.65,0.00025753,2]
[313653417,1707541861576,-500.0,0.00025753,2]
[313653418,1707541861585,-500.0,0.00025753,2]
[313653419,1707541861594,-841.34,0.00025753,2]
[313653420,1707541861604,-500.0,0.00025753,2]
[313653421,1707541861613,-548.98,0.00025753,2]
[313653422,1707541861622,-3133.73,0.00025753,2]
[313653423,1707541861632,-500.0,0.00025753,2]
[313653424,1707541861642,-5696.15,0.00025753,2]
[313653425,1707541861651,-1369.16,0.00025753,2]
[313653426,1707541861664,-1083.9,0.00025753,2]
[313653427,1707541861677,-500.0,0.00025753,2]
[313653428,1707541861687,-3213.78,0.00025753,2]
[313653429,1707541861696,-858.57,0.00025753,2]
[313653430,1707541861707,-1992.71,0.00025753,2]
[313653431,1707541861717,-756.03,0.00025753,2]
[313653432,1707541861726,-1694.87,0.00025753,2]
[313653433,1707541861736,-21142.71,0.00025753,2]
[313653434,1707541861746,-500.0,0.00025753,2]
[313653435,1707541861755,-3065.8,0.00025753,2]
[313653436,1707541861764,-750.69,0.00025753,2]
[313653437,1707541861773,-500.0,0.00025753,2]
[313653438,1707541861782,-500.0,0.00025753,2]
[313653439,1707541861791,-500.0,0.00025753,2]
[313653440,1707541861801,-500.0,0.00025753,2]
[313653441,1707541861811,-500.0,0.00025753,2]
[313653442,1707541861820,-1076.84,0.00025753,2]
[313653443,1707541861829,-3466.34,0.00025753,2]
[313653444,1707541861839,-1002.98,0.00025753,2]
[313653445,1707541861849,-500.0,0.00025753,2]
[313653446,1707541861858,-500.0,0.00025753,2]
[313653447,1707541861867,-569.26,0.00025753,2]
[313653448,1707541861877,-500.0,0.00025753,2]
[313653449,1707541861887,-500.0,0.00025753,2]
[313653450,1707541861896,-1066.53,0.00025753,2]
[313653451,1707541861905,-723.87,0.00025753,2]
[313653452,1707541861914,-500.0,0.00025753,2]
[313653453,1707541861923,-6160.91,0.00025753,2]
[313653454,1707541861933,-532.38,0.00025753,2]
[313653455,1707541861942,-500.0,0.00025753,2]
[313653456,1707541861951,-3525.48,0.00025753,2]
[313653457,1707541861961,-500.0,0.00025753,2]
[313653458,1707541861970,-556.85,0.00025753,2]
[313653459,1707541861981,-316.39845434,0.00025753,2]
[313653460,1707541861990,-4907.77,0.00025753,2]